bitfinex/quotes_SOLUSD_20240705
["timestamp","ask_amount","ask_price","bid_price","bid_amount"]
[1720176989605,0.17,128.61,128.49,15.7821]
[1720176989920,7.7762,128.6,128.49,22.3062]
[1720176990117,0.17,128.59,128.49,22.3062]
[1720176990316,0.17,128.61,128.49,22.3062]
[1720176990518,7.7777,128.58,128.49,22.3062]
[1720176991029,0.17,128.59,128.49,22.3062]
[1720176991211,3.42064622,128.61,128.49,22.3062]
[1720176991212,7.9462,128.6,128.5,100.0]
[1720176991414,11.19614622,128.61,128.52,100.0]
[1720176991628,3.42064622,128.61,128.52,100.0]
[1720176991827,7.7749,128.62,128.52,200.0]
[1720176992011,20.0,128.61,128.52,200.0]
[1720176992332,7.7749,128.62,128.53,20.0]
[1720176992521,39.27,128.63,128.52,100.0]
[1720176992720,68.6779542,128.63,128.5,200.0]
[1720176992927,72.09860042,128.63,128.5,100.0]
[1720176993221,7.7764,128.6,128.5,100.0]
[1720176993423,0.17,128.59,128.5,200.0]
[1720176993620,0.17,128.59,128.49,22.3062]
[1720176993822,0.17,128.59,128.5,20.0]
[1720176994126,8.06937805,128.58,128.5,20.0]
[1720176995235,8.06937805,128.58,128.51,100.0]
[1720176995442,0.17,128.59,128.51,100.0]
[1720176995621,8.07062883,128.58,128.51,100.0]
[1720176996439,15.84802883,128.58,128.5,20.0]
[1720176996621,0.17,128.57,128.5,20.0]
[1720176997032,8.07062883,128.58,128.5,20.0]
[1720176997333,7.7758,128.61,128.51,100.0]
[1720176997509,8.06524947,128.59,128.52,0.03272067]
[1720176998936,15.84204947,128.59,128.52,0.03272067]
[1720176999141,0.17,128.58,128.52,0.03272067]
[1720176999448,7.9473,128.58,128.52,0.03272067]
[1720176999939,6.2225,128.57,128.52,0.03272067]
[1720177000118,0.17,128.56,128.52,0.03272067]
[1720177001132,7.9484,128.56,128.48,0.02608104]
[1720177001320,0.17,128.56,128.48,0.02608104]
[1720177001741,7.7792,128.55,128.48,0.02608104]
[1720177001916,0.17,128.54,128.45,21.9447]
[1720177003344,0.17,128.55,128.45,21.9447]
[1720177003748,7.9491,128.55,128.45,21.9447]
[1720177003953,0.17,128.55,128.45,21.9447]
[1720177004440,0.17,128.55,128.46,100.0]
[1720177004646,7.9491,128.55,128.46,100.0]
[1720177004945,0.17,128.55,128.46,100.0]
[1720177005728,34.93,128.54,128.46,100.0]
[1720177006129,34.93,128.54,128.48,100.0]
[1720177006650,6.2225,128.57,128.48,100.0]
[1720177006828,41.1525,128.57,128.48,100.0]
[1720177007441,41.1525,128.57,128.46,100.0]
[1720177007442,34.93,128.55,128.46,200.0]
[1720177007643,34.93,128.55,128.47,20.0]
[1720177007844,8.06625025,128.54,128.47,20.0]
[1720177008447,8.06625025,128.54,128.46,200.0]
[1720177008653,8.06625025,128.54,128.47,20.0]
[1720177008851,8.06625025,128.54,128.46,200.0]
[1720177010132,8.06625025,128.54,128.47,20.0]
[1720177011254,8.06625025,128.54,128.48,100.0]
[1720177012245,8.06625025,128.54,128.47,20.0]
[1720177013566,8.06625025,128.54,128.46,200.0]
[1720177015573,8.06625025,128.54,128.41,57.8375]
[1720177015574,58.383,128.53,128.44,100.0]
[1720177015867,34.93,128.51,128.44,100.0]
[1720177016655,34.93,128.51,128.44,200.0]
[1720177017565,50.6023,128.53,128.44,200.0]
[1720177017759,50.6023,128.53,128.46,100.0]
[1720177018266,15.8338,128.56,128.48,100.0]
[1720177019062,6.2225,128.57,128.5,100.0]
[1720177019264,54.18444622,128.59,128.5,100.0]
[1720177019574,50.7638,128.59,128.52,100.0]
[1720177019769,15.8338,128.59,128.52,100.0]
[1720177020762,15.8338,128.59,128.51,100.0]
[1720177021068,8.06387308,128.62,128.55,100.0]
[1720177021270,8.06387308,128.62,128.54,106.5517]
[1720177021271,6.3763,128.64,128.54,206.7217]
[1720177021567,14.15,128.64,128.55,20.0]
[1720177021753,7.7742,128.63,128.54,106.5517]
[1720177021958,7.7752,128.62,128.54,6.5517]
[1720177022163,7.7758,128.61,128.5,206.5636]
[1720177022355,8.60426945,128.63,128.51,20.0]
[1720177022356,7.9462,128.6,128.51,20.0]
[1720177022560,0.17,128.6,128.5,6.5636]
[1720177022756,25.13026945,128.63,128.53,100.0]
[1720177023252,0.17,128.62,128.53,100.0]
[1720177023453,7.7759,128.61,128.5,106.5636]
[1720177023677,7.7763,128.6,128.51,20.0]
[1720177023983,7.9467,128.59,128.49,15.9555]
[1720177024277,0.17,128.59,128.5,20.0]
[1720177024575,0.17,128.6,128.5,20.0]
[1720177025072,7.946,128.6,128.5,20.0]
[1720177025286,7.7767,128.59,128.5,20.0]
[1720177025591,0.17,128.58,128.5,20.0]
[1720177026496,0.17,128.58,128.49,115.9555]
[1720177026706,15.3321,128.56,128.47,206.2153]
[1720177027892,15.3321,128.56,128.47,106.2153]
[1720177028080,15.3321,128.56,128.48,20.0]
[1720177028775,0.17,128.55,128.48,20.0]
[1720177030295,7.9492,128.55,128.42,382.63]
[1720177030601,7.9492,128.55,128.42,122.03]
[1720177030777,7.9492,128.55,128.43,100.0]
[1720177030976,7.9492,128.55,128.44,100.0]
[1720177031573,7.9492,128.55,128.43,100.0]
[1720177031574,7.7807,128.53,128.42,22.03]
[1720177031770,24.2046,128.51,128.41,100.0]
[1720177032100,7.7823,128.5,128.41,100.0]
[1720177032271,0.17,128.49,128.41,100.0]
[1720177032977,16.423,128.51,128.41,100.0]
[1720177033175,0.17,128.5,128.41,100.0]
[1720177034598,27.9521,128.5,128.39,122.107]
[1720177034790,6.3808,128.49,128.39,116.0029]
[1720177034982,0.17,128.48,128.39,116.0029]
[1720177036706,6.3808,128.49,128.41,100.0]
[1720177037414,6.3808,128.49,128.43,100.0]
[1720177037705,16.423,128.51,128.45,100.0]
[1720177038481,6.0343,128.52,128.47,100.0]
[1720177038711,37.18889085,128.55,128.45,100.0]
[1720177038879,40.11486355,128.55,128.46,20.0]
[1720177039197,38.22635699,128.55,128.46,20.0]
[1720177040304,0.17,128.54,128.46,20.0]
[1720177040495,38.22635699,128.55,128.46,20.0]
[1720177040698,21.9575,128.55,128.5,100.0]
[1720177041591,21.9575,128.55,128.46,135.7185]
[1720177041792,21.9575,128.55,128.48,100.0]
[1720177044404,21.9575,128.55,128.47,100.0]
[1720177044615,21.9575,128.55,128.48,100.0]
[1720177046105,29.7368,128.55,128.46,120.0]
[1720177046319,0.17,128.54,128.46,120.0]
[1720177046494,0.17,128.54,128.46,20.0]
[1720177047318,0.17,128.54,128.47,100.0]
[1720177049229,29.11653198,128.55,128.49,100.0]
[1720177049409,21.9575,128.55,128.51,100.0]
[1720177049787,21.9575,128.55,128.48,100.0]
[1720177049993,21.9575,128.55,128.46,20.17]
[1720177050190,29.7367,128.55,128.46,20.0]
[1720177050816,0.17,128.54,128.46,20.0]
[1720177053425,0.17,128.54,128.45,200.0]
[1720177053589,0.17,128.54,128.46,20.0]
[1720177053991,21.9575,128.55,128.48,100.0]
[1720177054618,21.9575,128.55,128.46,20.0]
[1720177054921,0.17,128.54,128.46,20.0]
[1720177055119,0.17,128.54,128.47,100.0]
[1720177055330,21.9575,128.55,128.47,100.0]
[1720177055516,0.17,128.54,128.47,100.0]
[1720177055917,21.9575,128.55,128.47,100.0]
[1720177056122,21.9575,128.55,128.47,200.0]
[1720177056403,21.9575,128.55,128.49,100.0]
[1720177058429,21.9575,128.55,128.47,100.0]
[1720177058430,21.9575,128.55,128.47,200.0]
[1720177059007,21.9575,128.55,128.48,20.0]
[1720177061317,21.9575,128.55,128.49,100.0]
[1720177061531,21.9575,128.55,128.48,20.0]
[1720177061916,21.9575,128.55,128.49,100.0]
[1720177062328,21.9575,128.55,128.48,20.0]
[1720177063435,21.9575,128.55,128.47,100.0]
[1720177063741,21.9575,128.55,128.48,20.0]
[1720177063923,21.9575,128.55,128.47,100.0]
[1720177064124,21.9575,128.55,128.48,20.0]
[1720177065030,21.9575,128.55,128.5,100.0]
[1720177065531,21.9575,128.55,128.48,120.0]
[1720177067042,21.9575,128.55,128.5,100.0]
[1720177067738,21.9575,128.55,128.48,120.0]
[1720177073336,21.9575,128.55,128.5,100.0]
[1720177073535,21.9575,128.55,128.52,100.0]
[1720177073834,15.3258,128.55,128.52,100.0]
[1720177075131,22.4968,128.58,128.52,100.0]
[1720177075732,22.4968,128.58,128.54,100.0]
[1720177076563,15.097,128.61,128.56,100.0]
[1720177078044,8.06305515,128.64,128.61,100.0]
[1720177078352,22.2977,128.65,128.61,100.0]
[1720177080362,22.2977,128.65,128.57,200.0]
[1720177080543,22.2977,128.65,128.58,20.0]
[1720177081440,22.2977,128.65,128.57,200.0]
[1720177081652,22.2977,128.65,128.57,100.0]
[1720177081851,35.09,128.64,128.53,100.0]
[1720177082059,34.92,128.62,128.53,100.0]
[1720177082359,22.2977,128.65,128.52,100.0]
[1720177082360,22.2977,128.65,128.56,200.0]
[1720177082543,57.2177,128.65,128.58,100.0]
[1720177084349,22.2977,128.65,128.62,100.0]
[1720177084653,22.2977,128.65,128.59,0.17]
[1720177084845,22.2977,128.65,128.6,100.0]
[1720177085447,22.2977,128.65,128.59,100.0]
[1720177085761,22.2977,128.65,128.6,20.0]
[1720177086653,22.2977,128.65,128.61,100.0]
[1720177087047,0.8766903,128.67,128.63,100.0]
[1720177087470,0.8766903,128.67,128.65,100.0]
[1720177088453,0.8766903,128.67,128.63,100.0]
[1720177089373,0.8766903,128.67,128.65,100.0]
[1720177089761,0.8766903,128.67,128.64,100.0]
[1720177090074,0.8766903,128.67,128.65,20.0]
[1720177090567,0.8766903,128.67,128.59,100.0]
[1720177090568,15.4789,128.66,128.59,100.0]
[1720177090770,6.4519,128.65,128.57,100.0]
[1720177091275,41.3719,128.65,128.57,100.0]
[1720177092280,41.3719,128.65,128.56,100.0]
[1720177092884,41.3719,128.65,128.55,100.0]
[1720177093181,34.92,128.63,128.55,100.0]
[1720177093555,34.92,128.63,128.54,100.0]
[1720177093890,34.92,128.63,128.54,200.0]
[1720177095464,34.92,128.63,128.55,20.0]
[1720177097356,34.92,128.64,128.57,100.0]
[1720177097757,34.92,128.64,128.58,100.0]
[1720177098586,6.4519,128.65,128.58,100.0]
[1720177099158,41.3719,128.65,128.57,100.0]
[1720177100391,41.3719,128.65,128.58,100.0]
[1720177100607,15.6489,128.66,128.61,100.0]
[1720177100608,15.4789,128.66,128.61,100.0]
[1720177100897,0.8766903,128.67,128.61,100.0]
[1720177100898,0.8766903,128.67,128.62,100.0]
[1720177103089,0.8766903,128.67,128.6,100.17]
[1720177103290,0.8766903,128.67,128.61,20.0]
[1720177103691,35.7966903,128.67,128.57,100.0]
[1720177103889,34.92,128.65,128.57,100.0]
[1720177104987,34.92,128.65,128.58,20.0]
[1720177105682,34.92,128.65,128.58,120.0]
[1720177105883,35.7966903,128.67,128.58,120.0]
[1720177106984,35.7966903,128.67,128.6,100.0]
[1720177107188,0.8766903,128.67,128.6,200.0]
[1720177110092,0.8766903,128.67,128.58,200.0]
[1720177110293,34.92,128.65,128.58,100.0]
[1720177110603,16.563,128.64,128.56,200.0]
[1720177111210,41.1408,128.63,128.54,100.0]
[1720177111412,41.3108,128.63,128.55,100.0]
[1720177111820,6.3908,128.63,128.55,100.0]
[1720177114419,7.7773,128.58,128.5,100.0]
[1720177114603,15.6966,128.57,128.49,100.0]
[1720177115022,6.336,128.55,128.48,100.0]
[1720177116318,6.336,128.55,128.49,0.65579452]
[1720177116521,6.336,128.55,128.51,100.0]
[1720177116818,15.6966,128.57,128.51,100.0]
[1720177117123,15.6966,128.57,128.53,100.0]
[1720177119306,15.6966,128.57,128.51,100.0]
[1720177119702,15.6966,128.57,128.49,100.0]
[1720177119903,15.6966,128.57,128.5,20.0]
[1720177120814,15.6966,128.57,128.49,100.0]
[1720177120815,0.17,128.56,128.49,100.0]
[1720177121011,0.17,128.56,128.43,260.6]
[1720177121012,7.781,128.52,128.43,260.6]
[1720177121236,22.9463,128.55,128.43,260.6]
[1720177121415,7.9502,128.53,128.42,200.0]
[1720177122130,0.17,128.53,128.42,200.0]
[1720177122630,0.17,128.53,128.44,100.0]
[1720177123226,6.32608959,128.53,128.44,100.0]
[1720177124211,6.32608959,128.53,128.46,100.0]
[1720177125311,31.00079791,128.55,128.48,100.0]
[1720177126039,22.9463,128.55,128.48,100.0]
[1720177126826,22.9463,128.55,128.5,100.0]
[1720177127732,22.9463,128.55,128.52,100.0]
[1720177128244,22.9463,128.55,128.5,100.0]
[1720177131125,22.9463,128.55,128.48,20.0]
[1720177132028,22.9463,128.55,128.47,100.0]
[1720177132242,22.9463,128.55,128.45,200.0]
[1720177132426,22.9463,128.55,128.46,0.17]
[1720177132740,22.9463,128.55,128.45,200.0]
[1720177133436,0.17,128.54,128.46,20.0]
[1720177133744,0.17,128.54,128.45,200.0]
[1720177133919,0.17,128.54,128.47,100.0]
[1720177137229,22.9463,128.55,128.47,100.0]
[1720177137638,22.9463,128.55,128.47,200.0]
[1720177140225,30.7255,128.55,128.47,200.0]
[1720177141816,34.93,128.54,128.47,200.0]
[1720177142120,34.93,128.54,128.45,200.0]
[1720177142321,0.17,128.53,128.46,20.0]
[1720177142742,34.93,128.52,128.46,20.0]
[1720177142918,34.93,128.52,128.44,20.0]
[1720177143628,34.93,128.52,128.45,100.0]
[1720177144129,34.93,128.54,128.47,100.0]
[1720177145462,34.93,128.54,128.45,100.0]
[1720177145960,34.93,128.54,128.46,100.0]
[1720177146349,42.7097,128.54,128.45,100.0]
[1720177146748,0.17,128.53,128.45,100.0]
[1720177148060,34.93,128.52,128.45,100.0]
[1720177149052,34.93,128.52,128.43,100.0]
[1720177149260,0.17,128.51,128.44,20.0]
[1720177149755,34.93,128.52,128.44,20.0]
[1720177149966,34.93,128.52,128.44,120.0]
[1720177151065,42.7122,128.5,128.41,100.0]
[1720177151362,34.93,128.5,128.41,100.0]
[1720177151570,34.93,128.5,128.39,200.0]
[1720177151964,34.93,128.48,128.39,200.0]
[1720177152141,34.93,128.48,128.41,100.0]
[1720177153444,34.93,128.48,128.39,100.0]
[1720177153645,34.93,128.48,128.4,120.17]
[1720177154061,34.93,128.48,128.41,100.0]
[1720177155281,21.836,128.51,128.41,100.0]
[1720177155476,21.836,128.51,128.43,100.0]
[1720177155687,21.836,128.51,128.47,200.0]
[1720177155986,29.29352715,128.55,128.49,100.0]
[1720177156139,21.229,128.55,128.48,0.17]
[1720177156574,21.229,128.55,128.48,20.17]
[1720177157153,21.229,128.55,128.49,100.0]
[1720177159658,21.229,128.55,128.48,20.17]
[1720177160158,21.229,128.55,128.48,20.0]
[1720177160359,21.229,128.55,128.49,100.0]
[1720177160562,22.35403198,128.58,128.52,200.0]
[1720177160768,6.1895,128.59,128.54,100.0]
[1720177160943,6.1895,128.59,128.56,100.0]
[1720177161148,15.195,128.61,128.56,100.0]
[1720177161368,15.195,128.61,128.56,200.0]
[1720177162370,22.8246,128.65,128.58,200.0]
[1720177162564,22.8246,128.65,128.6,100.0]
[1720177162768,0.8766903,128.67,128.6,100.0]
[1720177163278,0.8766903,128.67,128.6,200.0]
[1720177163970,0.8766903,128.67,128.56,100.0]
[1720177164176,10.68799067,128.66,128.56,100.0]
[1720177164352,2.91509067,128.66,128.54,100.0]
[1720177164555,7.7737,128.64,128.54,100.0]
[1720177164761,0.17,128.63,128.54,100.0]
[1720177165381,2.91509067,128.66,128.56,100.0]
[1720177165550,0.17,128.65,128.56,100.0]
[1720177166275,2.91509067,128.66,128.59,100.0]
[1720177166474,0.8766903,128.67,128.57,100.17]
[1720177166978,8.6485903,128.67,128.57,100.17]
[1720177167148,8.6484903,128.67,128.57,100.17]
[1720177168269,7.7725,128.66,128.56,100.0]
[1720177168469,7.7731,128.65,128.55,100.0]
[1720177168677,15.0872,128.64,128.57,100.0]
[1720177168858,15.0872,128.64,128.56,100.0]
[1720177169756,15.0872,128.64,128.55,100.0]
[1720177169963,15.0872,128.64,128.56,0.17]
[1720177172268,7.9442,128.63,128.54,100.0]
[1720177172471,0.17,128.63,128.54,100.0]
[1720177173979,15.0872,128.64,128.55,100.0]
[1720177174176,15.0872,128.64,128.56,100.17]
[1720177175483,15.0872,128.64,128.6,100.0]
[1720177176085,15.0872,128.64,128.59,100.0]
[1720177178182,15.0872,128.64,128.58,100.0]
[1720177178391,15.0872,128.64,128.57,100.0]
[1720177178692,15.0872,128.64,128.58,20.17]
[1720177179271,15.0872,128.64,128.6,100.0]
[1720177179470,15.0872,128.64,128.58,100.17]
[1720177181289,15.0872,128.64,128.55,19.4469]
[1720177181290,15.0872,128.64,128.55,100.0]
[1720177181786,15.0872,128.64,128.56,100.0]
[1720177183610,22.8608,128.64,128.55,100.0]
[1720177183779,0.17,128.63,128.56,20.0]
[1720177184478,0.17,128.63,128.55,20.0]
[1720177185900,15.0872,128.64,128.58,200.0]
[1720177186091,15.0872,128.64,128.6,100.0]
[1720177186599,15.0872,128.64,128.58,100.0]
[1720177187593,15.0872,128.64,128.57,100.17]
[1720177187800,15.0872,128.64,128.58,120.0]
[1720177191803,15.0872,128.64,128.58,100.0]
[1720177192102,15.0872,128.64,128.6,200.0]
[1720177196901,6.1363,128.66,128.62,100.0]
[1720177197108,16.8869903,128.67,128.64,100.0]
[1720177197295,0.8766903,128.67,128.64,100.0]
[1720177197610,0.8766903,128.67,128.66,100.0]
[1720177198407,0.8766903,128.67,128.66,100.17]
[1720177198609,0.8766903,128.67,128.66,0.17]
[1720177198815,0.8766903,128.67,128.65,100.0]
[1720177200407,0.8766903,128.67,128.66,100.0]
[1720177200604,0.8766903,128.67,128.66,127.9424]
[1720177200903,0.8766903,128.67,128.65,100.0]
[1720177201095,0.8766903,128.67,128.63,200.0]
[1720177201289,0.8766903,128.67,128.65,200.0]
[1720177201599,0.8766903,128.67,128.66,0.17]
[1720177201782,0.8766903,128.67,128.66,20.17]
[1720177202179,0.8766903,128.67,128.62,100.0]
[1720177202385,0.8766903,128.67,128.61,100.0]
[1720177202585,17.0541903,128.67,128.61,100.0]
[1720177202799,17.0541903,128.67,128.6,100.0]
[1720177203399,17.0541903,128.67,128.59,100.0]
[1720177203601,51.9241903,128.67,128.59,100.0]
[1720177203914,0.17,128.66,128.59,100.0]
[1720177204098,51.9241903,128.67,128.59,100.0]
[1720177204291,0.17,128.66,128.59,100.0]
[1720177205796,51.9241903,128.67,128.59,100.0]
[1720177206688,41.082,128.65,128.55,200.0]
[1720177206902,0.17,128.64,128.55,200.0]
[1720177207499,34.87,128.61,128.53,100.0]
[1720177208494,34.87,128.61,128.53,200.0]
[1720177209323,34.87,128.61,128.55,100.0]
[1720177209495,6.4771,128.62,128.57,100.0]
[1720177209897,6.4771,128.62,128.57,200.0]
[1720177210317,6.4771,128.62,128.55,200.0]
[1720177210533,6.4771,128.62,128.55,100.0]
[1720177210817,14.2519,128.62,128.53,100.0]
[1720177211199,6.4771,128.62,128.55,200.0]
[1720177211395,6.4771,128.62,128.54,100.0]
[1720177211601,7.7764,128.6,128.5,100.0]
[1720177211813,6.3414,128.58,128.49,100.0]
[1720177212119,15.1462,128.57,128.49,100.0]
[1720177212994,0.17,128.56,128.49,100.0]
[1720177213695,0.17,128.56,128.47,100.0]
[1720177213898,6.5647,128.55,128.45,100.0]
[1720177214206,0.17,128.54,128.45,100.0]
[1720177216719,0.17,128.54,128.46,20.0]
[1720177217117,0.17,128.54,128.47,100.0]
[1720177217420,6.5647,128.55,128.49,100.0]
[1720177217801,6.5647,128.55,128.51,100.0]
[1720177218617,6.5647,128.55,128.49,100.0]
[1720177219097,6.5647,128.55,128.46,47.4153]
[1720177219098,6.5647,128.55,128.51,100.0]
[1720177220604,15.1462,128.57,128.53,100.0]
[1720177220804,6.3869,128.59,128.54,100.0]
[1720177221323,6.3869,128.59,128.57,100.0]
[1720177221626,16.5482,128.61,128.57,100.0]
[1720177222527,6.6501,128.62,128.59,100.0]
[1720177223220,15.5233,128.64,128.59,100.0]
[1720177223414,15.5233,128.64,128.61,100.0]
[1720177223617,0.8766903,128.67,128.63,100.0]
[1720177223618,16.2310903,128.67,128.63,100.0]
[1720177223821,16.2310903,128.67,128.61,200.0]
[1720177224325,16.2310903,128.67,128.61,100.0]
[1720177224527,16.2310903,128.67,128.59,200.0]
[1720177224827,16.2310903,128.67,128.59,100.0]
[1720177225406,16.2310903,128.67,128.62,100.0]
[1720177225610,0.8766903,128.67,128.66,100.0]
[1720177225807,0.8766903,128.67,128.66,123.54]
[1720177226112,0.8766903,128.67,128.66,151.3124]
[1720177226312,0.8766903,128.67,128.66,153.11035819]
[1720177226631,7.1785903,128.8,128.74,100.0]
[1720177226842,7.1785903,128.8,128.74,200.0]
[1720177227133,7.1785903,128.8,128.74,100.0]
[1720177227352,0.8766903,128.8,128.75,0.17]
[1720177227518,0.8766903,128.8,128.74,200.0]
[1720177227838,0.8766903,128.8,128.74,100.0]
[1720177228004,0.8766903,128.8,128.74,200.0]
[1720177228424,0.8766903,128.8,128.74,100.0]
[1720177228627,0.8766903,128.8,128.7,100.0]
[1720177229730,0.8766903,128.8,128.69,0.17]
[1720177229731,0.17,128.79,128.69,0.17]
[1720177229934,0.17,128.79,128.69,20.17]
[1720177229935,7.9351,128.79,128.69,20.17]
[1720177230421,6.1163,128.78,128.66,201.79795819]
[1720177230619,20.17,128.77,128.68,200.0]
[1720177230932,7.7676,128.74,128.66,1.79795819]
[1720177231119,59.4,128.77,128.66,1.79795819]
[1720177231120,7.7671,128.75,128.66,1.79795819]
[1720177231317,0.17,128.74,128.66,1.79795819]
[1720177231518,0.17,128.74,128.67,100.0]
[1720177231927,6.1163,128.78,128.69,200.0]
[1720177232125,6.1163,128.78,128.71,100.0]
[1720177232627,6.1163,128.78,128.71,200.0]
[1720177233022,6.1163,128.78,128.73,200.0]
[1720177233315,0.8766903,128.8,128.73,200.0]
[1720177233929,0.8766903,128.8,128.73,100.0]
[1720177234232,0.8766903,128.8,128.73,200.0]
[1720177234436,0.8766903,128.8,128.73,100.0]
[1720177234733,8.6406903,128.8,128.71,200.0]
[1720177234940,0.8766903,128.8,128.71,200.0]
[1720177235329,0.17,128.79,128.71,200.0]
[1720177235637,0.8766903,128.8,128.73,200.0]
[1720177235838,0.8766903,128.8,128.75,100.0]
[1720177236823,0.8766903,128.8,128.73,200.0]
[1720177237231,0.8766903,128.8,128.75,100.0]
[1720177238153,0.8766903,128.8,128.75,200.0]
[1720177238952,0.8766903,128.8,128.77,100.0]
[1720177241741,0.8766903,128.8,128.74,100.0]
[1720177241929,0.8766903,128.8,128.76,100.0]
[1720177242817,0.8766903,128.8,128.74,100.0]
[1720177244025,0.8766903,128.8,128.75,100.0]
[1720177244221,0.8766903,128.8,128.76,100.0]
[1720177245429,0.8766903,128.8,128.77,100.0]
[1720177245931,0.8766903,128.8,128.78,100.0]
[1720177248051,0.8766903,128.8,128.79,100.0]
[1720177248255,0.8766903,128.8,128.79,200.0]
[1720177248559,0.8766903,128.8,128.79,220.0]
[1720177249850,0.8766903,128.8,128.79,220.17]
[1720177250149,0.8766903,128.8,128.79,243.54]
[1720177250349,14.63259298,128.91,128.86,100.0]
[1720177250654,6.5199,128.91,128.86,100.0]
[1720177250855,17.3184903,128.93,128.87,100.0]
[1720177251150,0.8766903,128.93,128.87,100.0]
[1720177251461,0.8766903,128.93,128.86,100.0]
[1720177251634,7.7579,128.9,128.81,100.0]
[1720177251839,7.7593,128.88,128.81,100.0]
[1720177252035,7.7591,128.88,128.78,360.6]
[1720177252235,21.8228,128.89,128.78,100.0]
[1720177252443,21.8228,128.89,128.77,100.0]
[1720177252444,7.7605,128.86,128.77,100.0]
[1720177252743,7.7599,128.87,128.77,100.0]
[1720177252942,21.8228,128.89,128.8,100.0]
[1720177253153,21.8228,128.89,128.82,200.0]
[1720177253332,23.6243903,128.93,128.85,100.0]
[1720177253530,23.6243903,128.93,128.86,100.0]
[1720177253936,23.6243903,128.93,128.87,100.0]
[1720177254130,23.6243903,128.93,128.86,100.0]
[1720177254951,23.6243903,128.93,128.87,100.0]
[1720177255150,0.8766903,128.93,128.9,100.0]
[1720177255353,0.8766903,128.93,128.88,100.0]
[1720177256568,0.8766903,128.93,128.89,100.0]
[1720177256860,0.8766903,128.93,128.88,100.0]
[1720177257153,0.8766903,128.93,128.87,100.0]
[1720177257536,7.7578,128.91,128.83,100.0]
[1720177257735,16.4636,128.92,128.83,100.0]
[1720177257931,7.7573,128.91,128.83,100.0]
[1720177258346,23.0879,128.92,128.83,200.0]
[1720177258972,23.0879,128.92,128.85,100.0]
[1720177259336,23.0879,128.92,128.85,200.0]
[1720177259759,16.4636,128.92,128.87,200.0]
[1720177260036,0.8766903,128.93,128.89,100.0]
[1720177260230,0.8766903,128.93,128.87,200.0]
[1720177260467,0.8766903,128.93,128.85,200.0]
[1720177260643,0.8766903,128.93,128.86,20.17]
[1720177261349,0.8766903,128.93,128.85,100.0]
[1720177261537,0.8766903,128.93,128.84,200.0]
[1720177261854,0.8766903,128.93,128.82,200.0]
[1720177262035,7.9268,128.92,128.82,200.0]
[1720177262235,0.17,128.92,128.84,100.0]